Cogmind - Beta 11 X8 *** ADVENTURER MODE // 2021.11.15 @ 12:43:06 Player: RogirekTheMad Result: Destroyed by G-34 Mercenary with Small Laser Performance ------------- Evolutions (1) 500 Regions Visited (3) 600 Robots Destroyed (3) 15 Value Destroyed (124) 124 Prototype IDs (1) 20 Alien Tech Used (0) 0 Bonus (200) 200 TOTAL SCORE: 1459 Bonus ------- Pacifist 200 Cogmind --------- Core Integrity 0/400 Matter 300/300 Energy 98/100 System Corruption 1% Temperature Cool (6) Movement Core (50) Location -9/Storage Parts ------- > --- POWER (1) -------- (None) > --- PROPULSION (2) --- (None) > --- UTILITY (4) ------ (None) > --- WEAPON (2) ------- (None) > --- INVENTORY (5) ---- (None) Peak State ------------ > --- POWER ------------ Improved Ion Engine > --- PROPULSION ------- (None) > --- UTILITY ---------- (None) > --- WEAPON ----------- Improved Lightning Gun Improved Lightning Gun > --- INVENTORY -------- (None) [Rating: 14] Favorites ----------- Power Improved Ion Engine Engine Improved Ion Engine Propulsion Flight Unit Flight Unit Flight Unit Utility None Weapon Improved Lightning Gun Energy Gun Improved Lightning Gun Build | -11 -10 -9 -9 ------- Run | Scr Mat Mat Sto Slots Evolved 2 | . . 2 . Power . | . . . . Propulsion . | . . . . Utility 2 | . . 2 . Weapon . | . . . . Parts Attached 4 | . . 1 3 Power 1 | . . . 1 Engine 1 | . . . 1 Core . | . . . . Reactor . | . . . . Propulsion 1 | . . 1 . Treads . | . . . . Leg . | . . . . Wheel . | . . . . Hover . | . . . . Flight 1 | . . 1 . Utility . | . . . . Device . | . . . . Storage . | . . . . Processor . | . . . . Hackware . | . . . . Protection . | . . . . Artifact . | . . . . Weapon 2 | . . . 2 Energy Gun 2 | . . . 2 Energy Cannon . | . . . . Ballistic Gun . | . . . . Ballistic Cannon . | . . . . Launcher . | . . . . Special Weapon . | . . . . Impact Weapon . | . . . . Slashing Weapon . | . . . . Piercing Weapon . | . . . . Special Melee Weapon . | . . . . Unidentified Prototypes 1 | . . . 1 Parts Lost 2 | . . 1 1 Power . | . . . . Propulsion 1 | . . 1 . Utility . | . . . . Weapon 1 | . . . 1 Highest Loss Streak 1 | . . 1 1 Average Slot Usage (%) 10 | . . 3 14 Energy Gun 8 | . . . 13 Naked Turns 173 | . 46 60 67 Heaviest Build 17 | . . . 17 Greatest Support 4 | 3 3 4 3 Greatest Overweight (x) 5 | . . . 5 Average Overweight (x) . | . . . . Largest Inventory Capacity 5 | 5 5 5 5 Average Capacity 5 | 5 5 5 5 Most Carried . | . . . . Average Carried . | . . . . Final Capacity 5 | 5 5 5 5 Final Carried . | . . . . Class Distribution -------------------- 100% | Mutant Dominant Class ---------------- Mutant | -10/Materials Mutant | -9/Materials Mutant | -9/Storage Resources | -11 -10 -9 -9 ----------- Run | Scr Mat Mat Sto Matter Collected 233 | 42 . . 191 Remotely . | . . . . Salvage Created 143 | . . . 143 Parts 12 | . . . 12 Haulers Intercepted . | . . . . Recyclers Shooed . | . . . . Parts Field Recycled . | . . . . Retrieved Matter . | . . . . Parts Self-Destructed . | . . . . Prevented . | . . . . Kills | -11 -10 -9 -9 ------- Run | Scr Mat Mat Sto Combat Hostiles Destroyed 3 | . . . 3 Guns 3 | . . . 3 Classes Destroyed 2 | . . . 2 Grunt 1 | . . . 1 Sentry 2 | . . . 2 Best Kill Streak 2 | . . . 2 Combat Bots Only 2 | . . . 2 Max Kills in Single Turn 1 | . . . 1 Gunslinging . | . . . . Exploded . | . . . . Melee . | . . . . Uniques/NPCs Destroyed . | . . . . Combat | -11 -10 -9 -9 -------- Run | Scr Mat Mat Sto Damage Taken 599 | . 41 124 434 Core 445 | . 41 104 300 Absorbed by Shields . | . . . . Core Remaining (%) 91 | 100 83 . . Volleys Fired 8 | . . . 8 Largest 2 | . . . 2 Hottest 120 | . . . 120 Shots Fired 12 | . . . 12 Gun 12 | . . . 12 Cannon . | . . . . Launcher . | . . . . Special . | . . . . Kinetic . | . . . . Thermal . | . . . . Explosive . | . . . . Electromagnetic 12 | . . . 12 Robot Hit Streak 5 | . . . 5 Robot Miss Streak 2 | . . . 2 Penetration Max . | . . . . Secondary Targets . | . . . . Shots Hit Robots 8 | . . . 8 Core Hits 3 | . . . 3 Critical Kills . | . . . . Critical Parts Destroyed . | . . . . Critical Strikes . | . . . . Melee Attacks . | . . . . Impact . | . . . . Slashing . | . . . . Piercing . | . . . . Sneak Attacks . | . . . . Combat Hostiles . | . . . . Follow-up Attacks . | . . . . Damage Inflicted 218 | . . 5 213 Guns 188 | . . . 188 Cannons . | . . . . Explosions . | . . . . Melee . | . . . . Ramming 30 | . . 5 25 Kinetic . | . . . . Thermal . | . . . . Explosive . | . . . . Electromagnetic 188 | . . . 188 Impact . | . . . . Slashing . | . . . . Piercing . | . . . . Highest Corruption 1 | . . . 1 Average Corruption 1 | . . . 1 Corruption Purged . | . . . . Effects 1 | . . . 1 Energy Discharges 1 | . . . 1 Overload Shots . | . . . . Overflow Damage . | . . . . Projectiles . | . . . . Explosions . | . . . . Melee . | . . . . Knockbacks . | . . . . Impact . | . . . . Kinetic . | . . . . Secondary . | . . . . Self-Inflicted Damage 13 | . . 2 11 Shots . | . . . . Rammed 8 | . . 1 7 Targets Rammed 8 | . . 1 7 Kicked . | . . . . Crushed . | . . . . Highest Temperature 63 | . . . 63 Average Temperature 21 | . . . 21 Received Heat Transfer 243 | . 15 9 219 Siege Activations . | . . . . Robots Corrupted . | . . . . Combat Hostiles . | . . . . Parts Fried 1 | . . . 1 Impact Corruptions . | . . . . Robots Melted . | . . . . Combat Hostiles . | . . . . Parts Melted . | . . . . Heat Transferred . | . . . . Parts Sabotaged . | . . . . Parts Stolen . | . . . . Parts Stripped . | . . . . Power Chain Reactions . | . . . . Missiles Intercepted . | . . . . Alert | -11 -10 -9 -9 ------- Run | Scr Mat Mat Sto Peak Influence 143 | . 3 80 143 Initial 28 | . . . 28 Average 52 | . 1 23 75 Maximum Alert Level . | . . . . Low Security (%) 100 | 100 100 100 100 Level 1 . | . . . . Level 2 . | . . . . Level 3 . | . . . . Level 4 . | . . . . Level 5 . | . . . . High Security . | . . . . Max Security . | . . . . Squads Dispatched 1 | . . . 1 Investigation . | . . . . Extermination . | . . . . Reinforcement 1 | . . . 1 Assault . | . . . . Garrison . | . . . . Intercept . | . . . . Construction Impeded . | . . . . Haulers Reinforced . | . . . . Active Scanning Responses . | . . . . Cargo Convoy Interrupts . | . . . . Stealth | -11 -10 -9 -9 --------- Run | Scr Mat Mat Sto Distress Signals 1 | . . 1 . Communications Jammed . | . . . . Distress Signals . | . . . . Times Spotted 27 | . 6 11 10 Peak Tracking Total 13 | . 7 13 5 Tactical Retreats 2 | . . 1 1 Traps | -11 -10 -9 -9 ------- Run | Scr Mat Mat Sto Traps Triggered 1 | . . . 1 Indirectly . | . . . . Trap Hack Attempts . | . . . . Triggered . | . . . . Disarmed . | . . . . Reprogrammed . | . . . . Reused . | . . . . Traps Extracted . | . . . . Installed . | . . . . Triggered . | . . . . Machines | -11 -10 -9 -9 ---------- Run | Scr Mat Mat Sto Machines Disabled . | . . . . Max in Single Turn . | . . . . Machines Sabotaged . | . . . . Garrisons Compromised . | . . . . Overloaded Fab Kills . | . . . . Hacking | -11 -10 -9 -9 --------- Run | Scr Mat Mat Sto Machines Accessed 2 | . 1 . 1 Terminals 2 | . 1 . 1 Fabricators . | . . . . Repair Stations . | . . . . Recycling Units . | . . . . Scanalyzers . | . . . . Garrison Access . | . . . . Total Hacks 3 | . 2 . 1 Successful 2 | . 1 . 1 Failed 1 | . 1 . . Catastrophic . | . . . . Database Lockouts . | . . . . Manual . | . . . . Terminals 3 | . 2 . 1 Fabricators . | . . . . Repair Stations . | . . . . Recycling Units . | . . . . Scanalyzers . | . . . . Garrison Access . | . . . . Terminal Hacks 2 | . 1 . 1 Open Door 1 | . . . 1 Dispatch Records 1 | . 1 . . Fabricator Hacks . | . . . . Repair Station Hacks . | . . . . Recycling Unit Hacks . | . . . . Scanalyzer . | . . . . Garrison Access Hacks . | . . . . Unauthorized Hacks . | . . . . Terminals . | . . . . Fabricators . | . . . . Repair Stations . | . . . . Recycling Units . | . . . . Scanalyzers . | . . . . Garrison Access . | . . . . Data Cores Recovered . | . . . . Used . | . . . . Hacking Detections 2 | . 1 . 1 Full Trace Events . | . . . . Feedback Events . | . . . . Feedback Blocked . | . . . . Robot Schematics Acquired . | . . . . Robots Built . | . . . . Authchips . | . . . . Time . | . . . . Total Robot Build Rating . | . . . . Part Schematics Acquired . | . . . . Parts Built . | . . . . Authchips . | . . . . Time . | . . . . Total Part Build Rating . | . . . . Parts Repaired . | . . . . Time . | . . . . Parts Recycled . | . . . . Recycled Matter . | . . . . Retrieved Matter . | . . . . Retrieved Components . | . . . . Parts Scanalyzed . | . . . . Part Schematics Acquired . | . . . . Parts Damaged . | . . . . Bothacking | -11 -10 -9 -9 ------------ Run | Scr Mat Mat Sto Used RIF Installer . | . . . . Robots Hacked . | . . . . Non-combat . | . . . . Combat . | . . . . Robot Hacks Applied . | . . . . Relay Couplers Released . | . . . . Fabnet Peak Effective % . | . . . . Robots Rewired . | . . . . Allies Hacked . | . . . . Hacks Repelled . | . . . . Allies | -11 -10 -9 -9 -------- Run | Scr Mat Mat Sto Total Allies . | . . . . Largest Group . | . . . . Highest-Rated Group . | . . . . Highest-Rated Ally . | . . . . Total Orders . | . . . . Ally Attacks . | . . . . Total Damage . | . . . . Kills . | . . . . Allies Corrupted . | . . . . Allies Melted . | . . . . Intel | -11 -10 -9 -9 ------- Run | Scr Mat Mat Sto Robot Analysis Total . | . . . . Derelict Logs Recovered . | . . . . Drone Launches . | . . . . Drone Recoveries . | . . . . Exploration | -11 -10 -9 -9 ------------- Run | Scr Mat Mat Sto Turns Passed 376 | 9 46 91 230 Spaces Moved 467 | 18 91 179 179 Core 403 | 18 91 115 179 Treads . | . . . . Legs . | . . . . Wheels . | . . . . Hover . | . . . . Flight 64 | . . 64 . Fastest Speed 40 | 50 50 40 50 Average Speed 65 | 50 50 46 93 Slowest Speed 300 | 50 50 50 300 Overloaded Moves . | . . . . Propulsion Burnouts . | . . . . Robots Hopped 5 | . . 5 . Cave-ins Triggered . | . . . . Exploration Rate (%) 21 | 4 29 24 27 Regions Visited 3 Branch Regions 1 Pre-discovered Areas . | . . . . Known Exits Taken . | . . . . Unknown Exits Taken 3 | 1 1 1 . Scrap Searched . | . . . . Spaces Dug . | . . . . Terrain Destroyed . | . . . . Melee . | . . . . Projectile . | . . . . AOE . | . . . . Terrain Rammed . | . . . . Walls Destroyed . | . . . . Machines Disabled . | . . . . Actions | -11 -10 -9 -9 --------- Run | Scr Mat Mat Sto Total 516 | 17 90 180 229 Wait 35 | . . 5 30 Move 455 | 17 90 169 179 Hop 4 | . . 4 . Pick Up . | . . . . Fast Attach 4 | . . 1 3 Attach . | . . . . Detach . | . . . . Swap . | . . . . Drop 2 | . . . 2 Fire 8 | . . . 8 Melee . | . . . . Ram 8 | . . 1 7 Kick . | . . . . Crush . | . . . . Escape Stasis . | . . . . Rewire . | . . . . Trap . | . . . . Miscellaneous . | . . . . Route ------- -11/Scrapyard -10/Materials -9/Materials -9/Storage History --------- Turn | Location | Event 4 | -11/Scrapyard | Discovered new exit (range 14) 10 | -11/Scrapyard | Entered Materials 54 | -10/Materials | Discovered new exit (range 4) 56 | -10/Materials | Entered another Materials area 56 | -9/Materials | Evolved 2 slots: Utility x2 137 | -9/Materials | Discovered new exit (range 6) 147 | -9/Materials | Entered Storage 246 | -9/Storage | Core integrity fell below 50% 311 | -9/Storage | Build established: Mutant 342 | -9/Storage | Core integrity fell below 20% 377 | -9/Storage | Destroyed by G-34 Mercenary with Small Laser Last Messages --------------- 00266_ R-06 Scavenger collects Corrupted Imp. Ion Engine. 00270_ K-01 Serf collects debris. 00273_ System corrupted: Energy discharge (-40). 00275_ U-05 Engineer builds a Door. 00289_ Connecting with Door Terminal... 00289_ Current location identified: Storage 00289_ Dropped Imp. Ion Engine. 00290_ Dropped Imp. Lightning Gun. 00310_ K-01 Serf destroyed. 00311_ Acquired 20 matter. 00312_ Extracted 58 matter. 00320_ Connecting with Door Terminal... >>Open(Door) Sealed Heavy Doors opened. 00328_ G-34 Mercenary destroyed. 00333_ Imp. Lightning Gun destroyed. 00340_ Slammed into G-34 Mercenary. 00341_ G-34 Mercenary misfires. 00342_ Slammed into G-34 Mercenary. 00347_ K-01 Serf collects debris. Map ----- +----------------------------------------------------+ | | | | | | | | | | | | | | | | | | | | | ?????????????????????????????????????????????????? | | ??????????????######?????????????????????????????? | | ??????????????## ###???????????????????????????? | | ###########???# [[[ #???????????????????????????? | | #???# [ #???????????????????????????? | | #???# #?????##########????????????? | | #???# #?????# #????????????? | | ####### #######/########## #????????????? | | #??# + #????????????? | | #??# ############### # ####+#???###?? | | ] #??# #?????###?????# # # #####T#"? | | #??# #?????????????# # + * [* "? | | |#??# #?????????????# # # "? | | #??# #????########## # # #######"? | | #??# #????#!! # %## # ## ### ###### | | #??# #????#!! %%##@ ########### # | | ####??# #????#!! ==#%% ########## + | | ??????# #????# ![%+*% # | | ??????# #????#!!! #T##% T ! = # """ """ | | ??????# #????#!!! #### #######+##### """ """ | | ??????# #????######??## ##????% ???# """ """? | | ??????# ??????????????# #???# !??# ?? | | ??????? ??????????????# ##### !!?# ?? | | ??????????############### + !!?#######??? | | ??????????#] [+ ##### ?????????? | | ??????????#[ # #####g###### "" """ #????????? | | ??????????#! # # ## "T """ #????????? | | ??????????# + # ## "" """ +????????? | | ??????????# # # """""" ## ?? ????#????????? | | ??????????# # # "????" #????+?????????????? | | ??????????# + + "????" #??????????????????? | | ??????????# ! ###### """""" #??????????????????? | | ??????????######????# #??????????????????? | | ????????????????????# #??????????????????? | | ????????????????????###########??????????????????? | | ?????????????????????????????????????????????????? | | ?????????????????????????????????????????????????? | | ?????????????????????????????????????????????????? | | ?????????????????????????????????????????????????? | | ?????????????????????????????????????????????????? | +----------------------------------------------------+ Best States ------------- Heat Dissipation 28 Energy Generation 12 Energy Capacity 265 Matter Stores 300 Matter Capacity 300 Sight Range 16 Terrain Scan Density 10 Resistance: KI 20 Resistance: TH 20 Resistance: EX 20 Resistance: EM 20 Resistance: I 20 Resistance: S 20 Resistance: P 20 Evasion (%) 62 Offensive Hacking 10 Item Schematics ----------------- None Robot Schematics ------------------ None Fabricated ------------ Nothing Alien Tech Used ----------------- None Achievements -------------- None Challenges ------------ None Game ------ Seed ThiefSignalFlail Manual? 0 Play Time 00:06:10 Cumulative 61.6 hours Start 2021.11.15 @ 12:20:51 End 2021.11.15 @ 12:43:06 Sessions 1 Manual Loads 0 Difficulty Adventurer Special Mode None Game No. 35 Rogue 7 Adventurer 28 Explorer 0 Win Type - Total 1 Types 1/0/0/0/0/0/0/0/0 Lore% 36 Gallery% 48 Achievement% 41 Wizard Run 0 Options --------- ASCII 0 Keyboard 0 Movement Mouse Keybinds 0 Fullscreen 1 Font 24/Smallcaps Map View 76x50 Tactical HUD 1 Map Filters NONE Filters NONE Steam 1 RUN: a0f494ed-5222-45fc-b53e-5727d0f6393a